{"text_format":"1","workbook":"xlsx","n_sheets":3,"sheets":["Instrucciones","Reformulación Presupuesto Bc","Resumen Presupuesto"],"not_rendered":{"charts":0,"images":1,"macros":1,"external_links":0,"defined_names":8,"comments":1,"pivot_tables":0},"unopened":[],"bounds":{"document_bytes":16777216,"sheet_cells":100000,"rows_first":2000,"rows_last":500,"rows_between":2000,"halvings":0,"cell_chars":16384,"cell_head_chars":4096},"cells_cut":0,"cells_raw":0,"read":"whole","date_system":"1900"}

{"sheet":"Instrucciones","index":0,"n_rows":18,"n_cols":9,"rows_kept":18,"cut":false,"hidden":false,"merged":[[1,8,1,12],[10,1,10,17],[12,1,12,17],[14,1,14,17],[16,1,16,17],[2,2,3,17],[4,2,4,17],[6,2,6,17],[8,1,8,17],[9,1,9,17]]}
[]
[null,null,null,null,null,null,null,null,"Doc_basico3_presup_reformulado_Bc INSTRUCCIONES"]
[null,null,"SUBVENCIONES DEL AYUNTAMIENTO DE BARCELONA PARA EL FORTALECIMIENTO DE LA ECONOMÍA SOCIAL Y SOLIDARIA Y POR LA INTERCOOPERACIÓN EN LA ESTRATEGIA #ESSBCN2030 - FORTALECEMOS LA ESS 2025"]
[]
[null,null,"Aspectos relevantes relacionados con la reformulación"]
[]
[null,null,"INSTRUCCIONES"]
[]
[null,"1. Cumplimentar sólo las celdas en blanco de la pestaña \"Reformulación Presupuesto\" con los datos económicos del proyecto:"]
[null,"1.1 Cumplimentar los cuadros DATOS BÁSICOS-PREVISIÓN DE GASTOS DEL PROYECTO SUBVENCIONABLE INICIAL, con los datos económicos de la propuesta inicial con subvención otorgada."]
[null,"1.2 Cumplimentar los cuadros DATOS BÁSICOS-PREVISIÓN DE GASTOS DEL PROYECTO REFORMULADO, con los datos económicos de la propuesta de reformulación."]
[]
[null,"2. Revisar y rellenar sólo las celdas en blanco de la pestaña \"Resumen Presupuesto\" con los datos económicos del proyecto."]
[]
[null,"3. Imprimir las hojas de las 2 pestañas (Reformulación presupuesto y Resumen Presupuesto). En formato pdf."]
[]
[null,"4. Si la solicitud se presentó por vía telemática, es necesario que registre la documentación telemáticamente dentro de la convocatoria específica como anexión de documentos adicionales y utilice el número de trámite que el sistema de registro os dio en el momento de la presentación de la solicitud de la subvención."]
[null,"Enlace para realizar el trámite."]

{"sheet":"Reformulación Presupuesto Bc","index":1,"n_rows":157,"n_cols":15,"rows_kept":157,"cut":false,"hidden":false,"merged":[[10,0,10,3],[10,6,10,9],[16,12,16,14],[14,1,14,3],[16,0,16,4],[14,7,14,9],[12,7,12,9],[13,7,13,9],[11,1,11,3],[12,1,12,3],[13,1,13,3],[11,7,11,9],[14,10,14,12],[11,10,11,12],[1,1,1,10],[3,0,3,14],[6,1,6,9],[7,1,7,9],[8,1,8,9],[4,0,4,14],[140,0,140,14],[141,0,141,14],[142,0,142,14],[143,0,143,14],[16,6,16,10],[135,0,135,14],[136,0,136,14],[137,0,137,14],[138,0,138,14],[139,0,139,14],[144,0,144,14],[154,0,154,14],[155,0,155,14],[149,0,149,14],[150,0,150,14],[151,0,151,14],[152,0,152,14],[153,0,153,14],[156,0,156,14],[148,0,148,14],[145,0,145,14],[146,0,146,14],[147,0,147,14]]}
[]
[null,"Reformulación presupuesto Modalidad Bc"]
[]
["Programa de subvenciones del Ayuntamiento de Barcelona para el fortalecimiento de la Economía Social y Solidaria y por la intercooperación en la Estrategia #ESSBCN2030 - FORTALECEMOS LA ESS 2025"]
["CUMPLIMENTAR SÓLO LAS CELDAS EN BLANCO"]
[]
["Nombre de la persona jurídica"]
["NIF de la persona jurídica"]
["Nombre del proyecto subvencionable"]
[]
["DATOS BÁSICOS DEL PROYECTO INICIAL SOLICITADO \n(indicar los datos solicitados en la propuesta inicial)",null,null,null,null,null,"DATOS BÁSICOS PROYECTO REFORMULADO"]
["Importe total del proyecto subvencionable",null,null,null,null,null,"Importe total del proyecto REFORMULADO",null,null,null,{"$f":"IF(H12<B12*0.7,\"No se puede reformular más de un 30%.\",\"\")","v":""}]
["Importe imputable a la subvención municipal",null,null,null,null,null,"Importe imputable a la subvención OTORGADA\n(indicar el importe otorgado a la resolución)"]
["Importe de la aportación y/o cofinanciación de la organización",{"$f":"+B12-B13","v":0},null,null,null,null,"Importe de la aportación y/o cofinanciación de la organización",{"$f":"H12-H13","v":0}]
["% del importe solicitado respecto al total del proyecto subvencionable (máximo 80%*)",{"$f":"IF(B13>0,B13/B12,\"\")","v":""},null,null,"* La cuantía de la subvención otorgada no superará el 80% del gasto total del proyecto a subvencionar.",null,"% del importe solicitado respecto al total del proyecto subvencionable (máximo 80%*)\n(debe ser igual o inferior respecto al % de la solicitud inicial)",{"$f":"IF(H13>0,H13/H12,\"\")","v":""},null,null,{"$f":"IF(H15=\"\",\"\",IF(H15>0.8,\"La quantía de la subvención otorgada no puede superar el 80% del gasto total del proyecto.\",IF(H15>B15,\"Debe ser igual o inferior al % de la propuesta inicial.\",\"\")))","v":""}]
[]
["PREVISIÓN DE GASTOS DEL PROYECTO SUBVENCIONABLE INICIAL",null,null,null,null,null,"PREVISIÓN DE GASTOS DEL PROYECTO REFORMULADO",null,null,null,null,null,"DIFERENCIA REFORMULACIÓN Y PROYECTO INICIAL"]
[]
["Partidas","Importe imputable a la subvención municipal","% subvención / total","Importe de la aportación y/o atribuciones de la organización","Importe total del proyecto",null,"Partidas","Importe imputable a la subvención municipal","% subvención / total","Importe de la aportación y/o atribuciones de la organización","Importe total del proyecto",null,"Importe imputable a la subvención municipal","Importe de la aportación y/o atribuciones de la organización","Importe total del proyecto"]
["D1. Retribuciones y seguridad social (régimen general o socios/as cooperativistas en régimen de autónomos) del personal propio vinculado al proyecto (máximo 40% subvención)",{"$f":"SUM(B21:B25)","v":0},{"$f":"IF(B20>0,B20/$B$13,)","v":0},{"$f":"SUM(D21:D25)","v":0},{"$f":"B20+D20","v":0},null,"D1. Retribuciones y seguridad social (régimen general o socios/as cooperativistas en régimen de autónomos) del personal propio vinculado al proyecto (máximo 40% subvención)",{"$f":"SUM(H21:H25)","v":0},{"$f":"IF(H20>0,H20/$H$13,)","v":0},{"$f":"SUM(J21:J25)","v":0},{"$f":"+H20+J20","v":0},null,{"$f":"B20-H20","v":0},{"$f":"D20-J20","v":0},0]
[null,null,null,null,0,null,null,null,null,null,0,null,{"$f":"B21-H21","v":0},0,0]
[null,null,null,null,0,null,null,null,null,null,0,null,0,0,0]
[null,null,null,null,0,null,null,null,null,null,0,null,0,0,0]
[null,null,null,null,0,null,null,null,null,null,0,null,0,0,0]
[null,null,null,null,0,null,null,null,null,null,0,null,0,0,0]
["TOTAL DE GASTOS DEL PERSONAL\nMáximo 40% del importe imputable a la subvención municipal si se trata de personal propio asignado directamente al proyecto subvencionado",{"$f":"B20","v":0},{"$f":"IF(B26>0,B26/$B$13,)","v":0},{"$f":"D20","v":0},{"$f":"E20","v":0},null,"TOTAL DE GASTOS DEL PERSONAL\nMáximo 40% del importe imputable a la subvención municipal si se trata de personal propio asignado directamente al proyecto subvencionado",{"$f":"H20","v":0},{"$f":"IF(H26>0,H26/$H$13,)","v":0},{"$f":"J20","v":0},{"$f":"K20","v":0},null,{"$f":"B26-H26","v":0},{"$f":"D26-J26","v":0},0]
["D2. Trabajos realizados por profesionales y empresas externas directamente vinculadas al proyecto",{"$f":"SUM(B28:B32)","v":0},{"$f":"IF(B27>0,B27/$B$13,)","v":0},{"$f":"SUM(D28:D32)","v":0},{"$f":"B27+D27","v":0},null,"D2. Trabajos realizados por profesionales y empresas externas directamente vinculadas al proyecto",{"$f":"SUM(H28:H32)","v":0},{"$f":"IF(H27>0,H27/$H$13,)","v":0},{"$f":"SUM(J28:J32)","v":0},{"$f":"+H27+J27","v":0},null,0,{"$f":"D27-J27","v":0},0]
[null,null,null,null,0,null,null,null,null,null,0,null,0,0,0]
[null,null,null,null,0,null,null,null,null,null,0,null,0,0,0]
[null,null,null,null,0,null,null,null,null,null,0,null,0,0,0]
[null,null,null,null,0,null,null,null,null,null,0,null,0,0,0]
[null,null,null,null,0,null,null,null,null,null,0,null,0,0,0]
["D3. Adquisición de materiales y bienes consumibles íntegramente imputables al proyecto",{"$f":"SUM(B34:B38)","v":0},{"$f":"IF(B33>0,B33/$B$13,)","v":0},{"$f":"SUM(D34:D38)","v":0},{"$f":"B33+D33","v":0},null,"D3. Adquisición de materiales y bienes consumibles íntegramente imputables al proyecto",{"$f":"SUM(H34:H38)","v":0},{"$f":"IF(H33>0,H33/$H$13,)","v":0},{"$f":"SUM(J34:J38)","v":0},{"$f":"H33+J33","v":0},null,{"$f":"B33-H33","v":0},{"$f":"D33-J33","v":0},{"$f":"E33-K33","v":0}]
[null,null,null,null,0,null,null,null,null,null,0,null,{"$f":"B34-H34","v":0},0,0]
[null,null,null,null,0,null,null,null,null,null,0,null,0,0,0]
[null,null,null,null,0,null,null,null,null,null,0,null,0,0,0]
[null,null,null,null,0,null,null,null,null,null,0,null,0,0,0]
[null,null,null,null,0,null,null,null,null,null,{"$f":"+H38+J38","v":0},null,0,0,0]
["D4. Transporte – mensajería imputables al proyecto",{"$f":"SUM(B40:B44)","v":0},{"$f":"IF(B39>0,B39/$B$13,)","v":0},{"$f":"SUM(D40:D44)","v":0},0,null,"D4. Transporte – mensajería imputables al proyecto",{"$f":"SUM(H40:H44)","v":0},{"$f":"IF(H39>0,H39/$H$13,)","v":0},{"$f":"SUM(J40:J44)","v":0},{"$f":"H39+J39","v":0},null,{"$f":"B39-H39","v":0},{"$f":"D39-J39","v":0},{"$f":"E39-K39","v":0}]
[null,null,null,null,0,null,null,null,null,null,0,null,{"$f":"B40-H40","v":0},0,0]
[null,null,null,null,0,null,null,null,null,null,0,null,0,0,0]
[null,null,null,null,0,null,null,null,null,null,0,null,0,0,0]
[null,null,null,null,0,null,null,null,null,null,0,null,0,0,0]
[null,null,null,null,0,null,null,null,null,null,{"$f":"+H44+J44","v":0},null,0,0,0]
["D5. Publicidad y propaganda de las actividades directamente vinculadas al proyecto",{"$f":"SUM(B46:B50)","v":0},{"$f":"IF(B45>0,B45/$B$13,)","v":0},{"$f":"SUM(D46:D50)","v":0},0,null,"D5. Publicidad y propaganda de las actividades directamente vinculadas al proyecto",{"$f":"SUM(H46:H50)","v":0},{"$f":"IF(H45>0,H45/$H$13,)","v":0},{"$f":"SUM(J46:J50)","v":0},{"$f":"H45+J45","v":0},null,{"$f":"B45-H45","v":0},{"$f":"D45-J45","v":0},{"$f":"E45-K45","v":0}]
[null,null,null,null,0,null,null,null,null,null,0,null,{"$f":"B46-H46","v":0},0,0]
[null,null,null,null,0,null,null,null,null,null,0,null,0,0,0]
[null,null,null,null,0,null,null,null,null,null,0,null,0,0,0]
[null,null,null,null,0,null,null,null,null,null,0,null,0,0,0]
[null,null,null,null,0,null,null,null,null,null,{"$f":"+H50+J50","v":0},null,0,0,0]
["D6. Alojamiento y dietas, del personal contratado y voluntario, vinculados al proyecto",{"$f":"SUM(B52:B56)","v":0},{"$f":"IF(B51>0,B51/$B$13,)","v":0},{"$f":"SUM(D52:D56)","v":0},0,null,"D6. Alojamiento y dietas, del personal contratado y voluntario, vinculados al proyecto",{"$f":"SUM(H52:H56)","v":0},{"$f":"IF(H51>0,H51/$H$13,)","v":0},{"$f":"SUM(J52:J56)","v":0},{"$f":"H51+J51","v":0},null,{"$f":"B51-H51","v":0},{"$f":"D51-J51","v":0},{"$f":"E51-K51","v":0}]
[null,null,null,null,0,null,null,null,null,null,0,null,{"$f":"B52-H52","v":0},0,0]
[null,null,null,null,0,null,null,null,null,null,0,null,0,0,0]
[null,null,null,null,0,null,null,null,null,null,0,null,0,0,0]
[null,null,null,null,0,null,null,null,null,null,0,null,0,0,0]
[null,null,null,null,0,null,null,null,null,null,{"$f":"+H56+J56","v":0},null,0,0,0]
["D7. Ayudas al transporte para los/las participantes de los proyectos en caso de que sea necesario de manera justificada",{"$f":"SUM(B58:B62)","v":0},{"$f":"IF(B57>0,B57/$B$13,)","v":0},{"$f":"SUM(D58:D62)","v":0},0,null,"D7. Ayudas al transporte para los/las participantes de los proyectos en caso de que sea necesario de manera justificada",{"$f":"SUM(H58:H62)","v":0},{"$f":"IF(H57>0,H57/$H$13,)","v":0},{"$f":"SUM(J58:J62)","v":0},{"$f":"H57+J57","v":0},null,{"$f":"B57-H57","v":0},{"$f":"D57-J57","v":0},{"$f":"E57-K57","v":0}]
[null,null,null,null,0,null,null,null,null,null,0,null,{"$f":"B58-H58","v":0},0,0]
[null,null,null,null,0,null,null,null,null,null,0,null,0,0,0]
[null,null,null,null,0,null,null,null,null,null,0,null,0,0,0]
[null,null,null,null,0,null,null,null,null,null,0,null,0,0,0]
[null,null,null,null,0,null,null,null,null,null,{"$f":"+H62+J62","v":0},null,0,0,0]
["D8. Viajes y desplazamientos imputables a las actividades del proyecto",{"$f":"SUM(B64:B68)","v":0},{"$f":"IF(B63>0,B63/$B$13,)","v":0},{"$f":"SUM(D64:D68)","v":0},0,null,"D8. Viajes y desplazamientos imputables a las actividades del proyecto",{"$f":"SUM(H64:H68)","v":0},{"$f":"IF(H63>0,H63/$H$13,)","v":0},{"$f":"SUM(J64:J68)","v":0},{"$f":"H63+J63","v":0},null,{"$f":"B63-H63","v":0},{"$f":"D63-J63","v":0},{"$f":"E63-K63","v":0}]
[null,null,null,null,0,null,null,null,null,null,0,null,{"$f":"B64-H64","v":0},0,0]
[null,null,null,null,0,null,null,null,null,null,0,null,0,0,0]
[null,null,null,null,0,null,null,null,null,null,0,null,0,0,0]
[null,null,null,null,0,null,null,null,null,null,0,null,0,0,0]
[null,null,null,null,0,null,null,null,null,null,{"$f":"+H68+J68","v":0},null,0,0,0]
["D9. Tributos, cuando sean abonados directamente por la persona jurídica beneficiaria",{"$f":"SUM(B70:B74)","v":0},{"$f":"IF(B69>0,B69/$B$13,)","v":0},{"$f":"SUM(D70:D74)","v":0},0,null,"D9. Tributos, cuando sean abonados directamente por la persona jurídica beneficiaria",{"$f":"SUM(H70:H74)","v":0},{"$f":"IF(H69>0,H69/$H$13,)","v":0},{"$f":"SUM(J70:J74)","v":0},{"$f":"H69+J69","v":0},null,{"$f":"B69-H69","v":0},{"$f":"D69-J69","v":0},{"$f":"E69-K69","v":0}]
[null,null,null,null,0,null,null,null,null,null,0,null,{"$f":"B70-H70","v":0},0,0]
[null,null,null,null,0,null,null,null,null,null,0,null,0,0,0]
[null,null,null,null,0,null,null,null,null,null,0,null,0,0,0]
[null,null,null,null,0,null,null,null,null,null,0,null,0,0,0]
[null,null,null,null,0,null,null,null,null,null,{"$f":"+H74+J74","v":0},null,0,0,0]
["D10. Otros gastos que de manera justificada y por la tipología del proyecto puedan imputarse directamente al proyecto",{"$f":"SUM(B76:B80)","v":0},{"$f":"IF(B75>0,B75/$B$13,)","v":0},{"$f":"SUM(D76:D80)","v":0},0,null,"D10. Otros gastos que de manera justificada y por la tipología del proyecto puedan imputarse directamente al proyecto",{"$f":"SUM(H76:H80)","v":0},{"$f":"IF(H75>0,H75/$H$13,)","v":0},{"$f":"SUM(J76:J80)","v":0},{"$f":"H75+J75","v":0},null,{"$f":"B75-H75","v":0},{"$f":"D75-J75","v":0},0]
[null,null,null,null,0,null,null,null,null,null,0,null,{"$f":"B76-H76","v":0},0,0]
[null,null,null,null,0,null,null,null,null,null,0,null,0,0,0]
[null,null,null,null,0,null,null,null,null,null,0,null,0,0,0]
[null,null,null,null,0,null,null,null,null,null,0,null,0,0,0]
[null,null,null,null,0,null,null,null,null,null,{"$f":"+H80+J80","v":0},null,0,0,0]
["TOTAL DE OTROS GASTOS DIRECTOS",{"$f":"B27+B33+B39+B45+B51+B57+B63+B69+B75","v":0},{"$f":"IF(B81>0,B81/$B$13,)","v":0},{"$f":"D27+D33+D39+D45+D51+D57+D63+D69+D75","v":0},{"$f":"E27+E33+E39+E45+E51+E57+E63+E69+E75","v":0},null,"TOTAL DE OTROS GASTOS DIRECTOS",{"$f":"H27+H33+H39+H45+H51+H57+H63+H69+H75","v":0},{"$f":"IF(H81>0,H81/$H$13,)","v":0},{"$f":"J27+J33+J39+J45+J51+J57+J63+J69+J75","v":0},{"$f":"K27+K33+K39+K45+K51+K57+K63+K69+K75","v":0},null,{"$f":"B81-H81","v":0},{"$f":"D81-J81","v":0},0]
["TOTAL GASTOS DIRECTOS (aquellos que se identifican directamente con el proyecto subvencionable)",{"$f":"SUM(B26,B81)","v":0},{"$f":"IF(B82>0,B82/$B$13,)","v":0},{"$f":"SUM(D26,D81)","v":0},{"$f":"E26+E81","v":0},null,"TOTAL GASTOS DIRECTOS (aquellos que se identifican directamente con el proyecto subvencionable)",{"$f":"SUM(H26,H81)","v":0},{"$f":"IF(H82>0,H82/$H$13,)","v":0},{"$f":"SUM(J26,J81)","v":0},{"$f":"K26+K81","v":0},null,0,{"$f":"D82-J82","v":0},0]
["I1. Personal de apoyo al proyecto (nóminas y seguridad social)",{"$f":"SUM(B84:B87)","v":0},null,{"$f":"SUM(D84:D87)","v":0},{"$f":"+B83+D83","v":0},null,"I1. Personal de apoyo al proyecto (nóminas y seguridad social)",{"$f":"SUM(H84:H87)","v":0},null,{"$f":"SUM(J84:J87)","v":0},{"$f":"+H83+J83","v":0},null,0,{"$f":"D83-J83","v":0},0]
[null,null,null,null,0,null,null,null,null,null,0,null,0,0,0]
[null,null,null,null,0,null,null,null,null,null,0,null,0,0,0]
[null,null,null,null,0,null,null,null,null,null,0,null,0,0,0]
[null,null,null,null,0,null,null,null,null,null,0,null,0,0,0]
["I2. Seguros",{"$f":"SUM(B89:B92)","v":0},null,{"$f":"SUM(D89:D92)","v":0},0,null,"I2. Seguros",{"$f":"SUM(H89:H92)","v":0},null,{"$f":"SUM(J89:J92)","v":0},0,null,{"$f":"B88-H88","v":0},{"$f":"D88-J88","v":0},0]
[null,null,null,null,0,null,null,null,null,null,0,null,{"$f":"B89-H89","v":0},0,0]
[null,null,null,null,0,null,null,null,null,null,0,null,0,0,0]
[null,null,null,null,0,null,null,null,null,null,0,null,0,0,0]
[null,null,null,null,0,null,null,null,null,null,0,null,0,0,0]
["I3. Amortización",{"$f":"SUM(B94:B97)","v":0},null,{"$f":"SUM(D94:D97)","v":0},0,null,"I3. Amortización",{"$f":"SUM(H94:H97)","v":0},null,{"$f":"SUM(J94:J97)","v":0},0,null,{"$f":"B93-H93","v":0},{"$f":"D93-J93","v":0},0]
[null,null,null,null,0,null,null,null,null,null,0,null,{"$f":"B94-H94","v":0},0,0]
[null,null,null,null,0,null,null,null,null,null,0,null,0,0,0]
[null,null,null,null,0,null,null,null,null,null,0,null,0,0,0]
[null,null,null,null,0,null,null,null,null,null,0,null,0,0,0]
["I4. Alquiler de bienes inmuebles",{"$f":"SUM(B99:B102)","v":0},null,{"$f":"SUM(D99:D102)","v":0},0,null,"I4. Alquiler de bienes inmuebles",{"$f":"SUM(H99:H102)","v":0},null,{"$f":"SUM(J99:J102)","v":0},0,null,{"$f":"B98-H98","v":0},{"$f":"D98-J98","v":0},0]
[null,null,null,null,0,null,null,null,null,null,0,null,{"$f":"B99-H99","v":0},0,0]
[null,null,null,null,0,null,null,null,null,null,0,null,0,0,0]
[null,null,null,null,0,null,null,null,null,null,0,null,0,0,0]
[null,null,null,null,0,null,null,null,null,null,0,null,0,0,0]
["I5. Adquisición de materiales y bienes consumibles parcialmente imputables al proyecto",{"$f":"SUM(B104:B107)","v":0},null,{"$f":"SUM(D104:D107)","v":0},0,null,"I5. Adquisición de materiales y bienes consumibles parcialmente imputables al proyecto",{"$f":"SUM(H104:H107)","v":0},null,{"$f":"SUM(J104:J107)","v":0},0,null,{"$f":"B103-H103","v":0},{"$f":"D103-J103","v":0},0]
[null,null,null,null,0,null,null,null,null,null,0,null,{"$f":"B104-H104","v":0},0,0]
[null,null,null,null,0,null,null,null,null,null,0,null,0,0,0]
[null,null,null,null,0,null,null,null,null,null,0,null,0,0,0]
[null,null,null,null,0,null,null,null,null,null,0,null,0,0,0]
["I6. Mantenimiento de edificios y/o instalaciones",{"$f":"SUM(B109:B112)","v":0},null,{"$f":"SUM(D109:D112)","v":0},0,null,"I6. Mantenimiento de edificios y/o instalaciones",{"$f":"SUM(H109:H112)","v":0},null,{"$f":"SUM(J109:J112)","v":0},0,null,{"$f":"B108-H108","v":0},{"$f":"D108-J108","v":0},0]
[null,null,null,null,0,null,null,null,null,null,0,null,{"$f":"B109-H109","v":0},0,0]
[null,null,null,null,0,null,null,null,null,null,0,null,0,0,0]
[null,null,null,null,0,null,null,null,null,null,0,null,0,0,0]
[null,null,null,null,0,null,null,null,null,null,0,null,0,0,0]
["I7. Comunicaciones (teléfono, correos, conexión a internet)",{"$f":"SUM(B114:B117)","v":0},null,{"$f":"SUM(D114:D117)","v":0},0,null,"I7. Comunicaciones (teléfono, correos, conexión a internet)",{"$f":"SUM(H114:H117)","v":0},null,{"$f":"SUM(J114:J117)","v":0},0,null,{"$f":"B113-H113","v":0},{"$f":"D113-J113","v":0},0]
[null,null,null,null,0,null,null,null,null,null,0,null,{"$f":"B114-H114","v":0},0,0]
[null,null,null,null,0,null,null,null,null,null,0,null,0,0,0]
[null,null,null,null,0,null,null,null,null,null,0,null,0,0,0]
[null,null,null,null,0,null,null,null,null,null,0,null,0,0,0]
["I8. Gastos financieros",{"$f":"SUM(B119:B122)","v":0},null,{"$f":"SUM(D119:D122)","v":0},0,null,"I8. Gastos financieros",{"$f":"SUM(H119:H122)","v":0},null,{"$f":"SUM(J119:J122)","v":0},0,null,{"$f":"B118-H118","v":0},{"$f":"D118-J118","v":0},0]
[null,null,null,null,0,null,null,null,null,null,0,null,{"$f":"B119-H119","v":0},0,0]
[null,null,null,null,0,null,null,null,null,null,0,null,0,0,0]
[null,null,null,null,0,null,null,null,null,null,0,null,0,0,0]
[null,null,null,null,0,null,null,null,null,null,0,null,0,0,0]
["I9. Suministros",{"$f":"SUM(B124:B127)","v":0},null,{"$f":"SUM(D124:D127)","v":0},0,null,"I9. Suministros",{"$f":"SUM(H124:H127)","v":0},null,{"$f":"SUM(J124:J127)","v":0},0,null,{"$f":"B123-H123","v":0},{"$f":"D123-J123","v":0},0]
[null,null,null,null,0,null,null,null,null,null,0,null,{"$f":"B124-H124","v":0},0,0]
[null,null,null,null,0,null,null,null,null,null,0,null,0,0,0]
[null,null,null,null,0,null,null,null,null,null,0,null,0,0,0]
[null,null,null,null,0,null,null,null,null,null,0,null,0,0,0]
["I10. Trabajo realizado por otras empresas, parcialmente imputables al proyecto (limpieza, seguridad...)",{"$f":"SUM(B129:B132)","v":0},null,{"$f":"SUM(D129:D132)","v":0},0,null,"I10. Trabajo realizado por otras empresas, parcialmente imputables al proyecto (limpieza, seguridad...)",{"$f":"SUM(H129:H132)","v":0},null,{"$f":"SUM(J129:J132)","v":0},0,null,{"$f":"B128-H128","v":0},{"$f":"D128-J128","v":0},0]
[null,null,null,null,0,null,null,null,null,null,0,null,{"$f":"B129-H129","v":0},0,0]
[null,null,null,null,0,null,null,null,null,null,0,null,0,0,0]
[null,null,null,null,0,null,null,null,null,null,0,null,0,0,0]
[null,null,null,null,0,null,null,null,null,null,0,null,0,0,0]
["TOTAL GASTOS INDIRECTOS (se podrán asignar al proyecto subvencionable usando un porcentaje de asignación) - Máximo 10% del importe imputable a la subvención municipal",{"$f":"SUM(B83,B88,B93,B98,B103,B108,B113,B118,B123,B128)","v":0},{"$f":"IF(B133>0,B133/$B$13,)","v":0},{"$f":"SUM(D83,D88,D93,D98,D103,D108,D113,D118,D123,D128)","v":0},{"$f":"E83+E88+E93+E98+E103+E108+E113+E118+E123+E128","v":0},null,"TOTAL GASTOS INDIRECTOS (se podrán asignar al proyecto subvencionable usando un porcentaje de asignación) - Máximo 10% del importe imputable a la subvención municipal",{"$f":"SUM(H83,H88,H93,H98,H103,H108,H113,H118,H123,H128)","v":0},{"$f":"IF(H133>0,H133/$H$13,)","v":0},{"$f":"SUM(J83,J88,J93,J98,J103,J108,J113,J118,J123,J128)","v":0},{"$f":"K83+K88+K93+K98+K103+K108+K113+K118+K123+K128","v":0},{"$f":"+IF(H133>H13*0.1,\"ALERTA: Màxim 10% import imputable a la subvenció municipal\", \" \")","v":" "},{"$f":"B133-H133","v":0},{"$f":"D133-J133","v":0},0]
["TOTAL DE GASTOS PREVISTOS",{"$f":"SUM(B82+B133)","v":0},{"$f":"IF(B134>0,B134/$B$13,)","v":0},{"$f":"SUM(D82+D133)","v":0},{"$f":"SUM(E82+E133)","v":0},null,"TOTAL DE GASTOS PREVISTOS",{"$f":"SUM(H82+H133)","v":0},{"$f":"IF(H134>0,H134/$H$13,)","v":0},{"$f":"SUM(J82+J133)","v":0},0,null,0,{"$f":"D134-J134","v":0},0]
[null,{"$f":"IF(B134>B13,\"La suma del detalle de gastos no puede ser superior al importe total de subvención municipal indicado en el recuadro.\",(IF(B134<B13,\"La suma del detalle de gastos no puede ser inferior al importe total de subvención municipal indicado en el recuadro.\",\"\")))","v":""},null,{"$f":"IF(D134>B14,\"La suma del detalle de gastos no puede ser superior al importe total de la aportación/cofinanciación indicado en el recuadro.\",(IF(D134<B14,\"La suma del detalle de gastos no puede ser inferior al importe total de la aportación/cofinanciación indicado en el recuadro.\",\"\")))","v":""},{"$f":"IF(E134>B12,\"La suma del detalle de gastos no puede ser superior al importe total del proyecto indicado en el recuadro.\",(IF(E134<B12,\"La suma del detalle de gastos no puede ser inferior al importe total del proyecto indicado en el recuadro.\",\"\")))","v":""},null,null,{"$f":"IF(H134>H13,\"La suma del detalle de gastos no puede ser superior al importe total de subvención municipal indicado en el recuadro.\",(IF(H134<H13,\"La suma del detalle de gastos no puede ser inferior al importe total de subvención municipal indicado en el recuadro.\",\"\")))","v":""},null,{"$f":"IF(J134>H14,\"La suma del detalle de gastos no puede ser superior al importe total de la aportación/cofinanciación indicado en el recuadro.\",(IF(J134<H14,\"La suma del detalle de gastos no puede ser inferior al importe total de la aportación/cofinanciación indicado en el recuadro.\",\"\")))","v":""},{"$f":"IF(K134>H12,\"La suma del detalle de gastos no puede ser superior al importe total del proyecto indicado en el recuadro.\",(IF(K134<H12,\"La suma del detalle de gastos no puede ser inferior al importe total del proyecto indicado en el recuadro.\",\"\")))","v":""}]
["Modalidad Bc: Proyectos de implementación y acciones de intercooperación significativas para el desarrollo de los Proyectos de Ciudad del #ESSBCN2030"]
["1. La cuantía de la subvención otorgada no superará el 80% del gasto total del proyecto a subvencionar."]
["2. El importe máximo de subvención para esta modalidad Bc es 18.000€."]
["3. En el caso de que la solicitud presentada sobrepase el importe máximo, se considerará como importe solicitado el máximo de lo establecido en la convocatoria."]
["4. En esta modalidad se aceptará la imputación de gastos de personal propio y directamente vinculado al proyecto de las organizaciones participantes del acuerdo de intercooperación presentado para el desarrollo del proyecto subvencionable."]
["5. Se limita con un máximo del 40% el importe de la subvención para gastos de personal propio asignado directamente al proyecto subvencionado."]
["6. En el caso de alquileres de inmuebles los gastos de alquiler se imputarán a los gastos indirectos con el límite establecido por estos gastos indirectos."]
["7. Para las subvenciones otorgadas por importe igual o superior a 20.000 € es obligatorio un informe de auditoría para la justificación. El importe de este informe se considera gasto subvencionable, con un límite máximo de 1.500€."]
["8. Son imputables en esta modalidad los gastos indirectos, detallados en el apartado 13.3. de las bases reguladoras; con un máximo del 10% del importe de la subvención.\nEl carácter subvencionable del gasto de amortización estará sujeto a las siguientes condiciones:\n> Que las subvenciones no hayan contribuido a la compra de los bienes.\n> Que la amortización se calcule de conformidad con las normas de contabilidad generalmente aceptadas.\n> Que el coste se refiera al periodo subvencionable."]
["9. No se pueden imputar en ningún caso gastos de inversión, correspondientes a partidas del inmovilizado, con el dinero de la subvención otorgada en esta convocatoria específica. Sí se pueden imputar a la parte de contribución, siempre que sean gastos dentro del periodo ejecutivo del proyecto subvencionado y acreditables tal como se describe en las bases reguladoras vigentes."]
["10. Los proyectos de esta modalidad deberán entregar a su finalización un producto comunicativo, de acuerdo con el contenido establecido en la convocatoria de la subvención."]
["11. No serán elegibles facturas de empresas emitidas entre las organizaciones participantes del acuerdo de colaboración."]
["12. En ningún caso se considerarán gastos subvencionables:\n > Los impuestos indirectos cuando sean susceptibles de recuperación o compensación.\n > Los gastos de inversión, incluidas las adquisiciones de bienes muebles.\n > Los gastos realizados con fecha anterior al inicio del proyecto y fecha posterior a la finalización del proyecto.\n > Otros gastos que se indiquen en la convocatoria."]
["13. La retribución de las personas contratadas en el marco del proyecto subvencionado no puede ser inferior al Salario Mínimo Interprofesional (SMI), ni a la estipulada en el correspondiente convenio o marco normativo de referencia (punto 7 de las bases 2025: requisitos de los proyectos)."]
["14. Los materiales producidos de difusión, estudios, informes o materiales didácticos utilizados, etc. en el caso de tratarse de gasto elegible de la subvención, deberán tener licencia Creative Commons -Compartir Igual- (share a like) y no podrá tener la condición –Sin Obras Derivadas- (no derivate Works)."]
["15. Los proyectos subvencionados deben fomentar actividades de interés público o social, las cuales deben ser gratuitas para las personas participantes o en ningún caso el precio debe suponer un obstáculo para su participación, buscando otras formas de acceso para personas con dificultades económicas. En el caso de que haya algún tipo de lucro, tendrá que revertir en las propias actividades subvencionadas."]
["16. El Ayuntamiento de Barcelona y sus entidades municipales en ningún caso subvencionarán el mismo proyecto, ejecutado durante el mismo periodo, por ningún otro procedimiento de concesión que no sea el regulado por las bases reguladoras."]
["17. El/la beneficiario/a no podrá alterar en ningún caso el destino de las subvenciones concedidas."]
["18. La organización designada como representante de la agrupación será plenamente responsable del proyecto ante el Ayuntamiento respecto al cumplimiento de las obligaciones establecidas en las bases reguladoras, sin perjuicio de la responsabilidad de las demás organizaciones socias de la agrupación, siéndole de aplicación los requisitos previstos en el punto 6.1 de las bases reguladoras."]
["19. En ningún caso podrán formar parte de la agrupación las organizaciones que hayan recibido otras subvenciones para la ejecución del mismo proyecto de otras administraciones públicas."]
["20. En caso de realizarse gastos superiores a los importes establecidos por los contratos menores de servicios, suministros y obras de la Ley de Contratos del Sector Público 9/2017, se deberán incorporar tres presupuestos solicitados y argumentar el motivo de la adjudicación en el caso de no ser la propuesta más ventajosa económicamente."]
["21. En el caso de presentar tickets, su importe no podrá superar el 10% de la subvención e irán acompañados de una declaración responsable del representante legal de la persona jurídica o de la agrupación de personas jurídicas que indicará en qué concepto se imputa este gasto."]

{"sheet":"Resumen Presupuesto","index":2,"n_rows":27,"n_cols":12,"rows_kept":27,"cut":false,"hidden":false,"merged":[[26,7,26,10],[6,7,7,8],[6,9,7,9],[6,10,7,10],[9,7,10,7],[9,8,10,8],[9,9,10,9],[9,10,10,10],[12,7,13,7],[12,8,13,8],[12,9,13,9],[12,10,13,10],[21,7,21,8],[19,3,20,3],[19,4,20,4],[19,5,20,5],[1,2,2,8],[3,0,3,9],[5,0,5,1],[6,0,7,1],[6,2,7,3],[6,4,7,5],[10,0,11,0],[19,0,20,1],[19,2,20,2]]}
[]
[null,null,"Resumen presupuesto Bc"]
[]
["Subvenciones del Ayuntamiento de Barcelona para el fortalecimiento de la Economía Social y Solidaria y por la intercooperación en la Estrategia #ESSBCN2030 - FORTALECEMOS LA ESS 2025",null,null,null,null,null,null,null,null,null,"MODALIDAD Bc"]
[]
["GASTOS PREVISTOS",null,"SOLICITUD INICIAL","REFORMULACIÓN","SOLICITUD INICIAL","REFORMULACIÓN",null,"INGRESOS PREVISTOS",null,"SOLICITUD INICIAL","REFORMULACIÓN"]
["Gastos directos \n(aquellas que se identifican directamente con el proyecto)",null,"Coste total",null,"Subvenció",null,null,"INGRESOS PREVISTOS",null,"Previsión inicial ingreso total","Previsión reformulada ingreso total"]
[]
["Bc","D1. Retribuciones y seguridad social (régimen general o socios/as cooperativistas en régimen de autónomos) del personal propio vinculado al proyecto (máximo 40% subvención)",{"$f":"+'Reformulación Presupuesto Bc'!E20","v":0},{"$f":"+'Reformulación Presupuesto Bc'!K20","v":0},{"$f":"+'Reformulación Presupuesto Bc'!B20","v":0},{"$f":"+'Reformulación Presupuesto Bc'!H20","v":0},null,"A.","Subvención municipal (importe solicitado a la instancia/otorgado)",{"$f":"'Reformulación Presupuesto Bc'!B13","v":0},{"$f":"'Reformulación Presupuesto Bc'!H13","v":0}]
[null,"D2. Trabajos realizados por profesionales y empresas externas directamente vinculadas al proyecto",{"$f":"+'Reformulación Presupuesto Bc'!E27","v":0},{"$f":"+'Reformulación Presupuesto Bc'!K27","v":0},{"$f":"+'Reformulación Presupuesto Bc'!B27","v":0},{"$f":"+'Reformulación Presupuesto Bc'!H27","v":0},null,"B.","Subvenciones de otras administraciones"]
[null,"D3. Adquisición de materiales y bienes consumibles íntegramente imputables al proyecto",{"$f":"+'Reformulación Presupuesto Bc'!E33","v":0},{"$f":"+'Reformulación Presupuesto Bc'!K33","v":0},{"$f":"+'Reformulación Presupuesto Bc'!B33","v":0},{"$f":"+'Reformulación Presupuesto Bc'!H33","v":0},null,null,null,null,null,{"$f":"+IF(K11<0,\"No s'admeten valors negatius\",\"\")","v":""}]
[null,"D4. Transporte – mensajería imputables al proyecto",{"$f":"+'Reformulación Presupuesto Bc'!E39","v":0},{"$f":"+'Reformulación Presupuesto Bc'!K39","v":0},{"$f":"+'Reformulación Presupuesto Bc'!B39","v":0},{"$f":"+'Reformulación Presupuesto Bc'!H39","v":0},null,"C.","Subvenciones de entidades privadas",null,null,""]
[null,"D5. Publicidad y propaganda de las actividades directamente vinculadas al proyecto",{"$f":"+'Reformulación Presupuesto Bc'!E45","v":0},{"$f":"+'Reformulación Presupuesto Bc'!K45","v":0},{"$f":"+'Reformulación Presupuesto Bc'!B45","v":0},{"$f":"+'Reformulación Presupuesto Bc'!H45","v":0},null,"D.","Recursos propios de la organización aplicados al proyecto"]
[null,"D6. Alojamiento y dietas, del personal contratado y voluntario, vinculados al proyecto",{"$f":"+'Reformulación Presupuesto Bc'!E51","v":0},{"$f":"+'Reformulación Presupuesto Bc'!K51","v":0},{"$f":"+'Reformulación Presupuesto Bc'!B51","v":0},{"$f":"+'Reformulación Presupuesto Bc'!H51","v":0}]
[null,"D7. Ayudas al transporte para los/las participantes de los proyectos en caso de que sea necesario de manera justificada",{"$f":"+'Reformulación Presupuesto Bc'!E57","v":0},{"$f":"+'Reformulación Presupuesto Bc'!K57","v":0},{"$f":"+'Reformulación Presupuesto Bc'!B57","v":0},{"$f":"+'Reformulación Presupuesto Bc'!H57","v":0},null,"E.","Taquillaje"]
[null,"D8. Viajes y desplazamientos imputables a las actividades del proyecto",{"$f":"+'Reformulación Presupuesto Bc'!E63","v":0},{"$f":"+'Reformulación Presupuesto Bc'!K63","v":0},{"$f":"+'Reformulación Presupuesto Bc'!B63","v":0},{"$f":"+'Reformulación Presupuesto Bc'!H63","v":0},null,"F.","Cuotas de inscripción"]
[null,"D9. Tributos, cuando sean abonados directamente por la persona jurídica o física beneficiaria",{"$f":"+'Reformulación Presupuesto Bc'!E65","v":0},{"$f":"+'Reformulación Presupuesto Bc'!K65","v":0},{"$f":"+'Reformulación Presupuesto Bc'!B65","v":0},{"$f":"+'Reformulación Presupuesto Bc'!H65","v":0},null,"G.","Venta de Productos"]
[null,"D10. Otros gastos que de manera justificada y por la tipología del proyecto puedan imputarse directamente al proyecto",{"$f":"+'Reformulación Presupuesto Bc'!E75","v":0},{"$f":"+'Reformulación Presupuesto Bc'!K75","v":0},{"$f":"+'Reformulación Presupuesto Bc'!B75","v":0},{"$f":"+'Reformulación Presupuesto Bc'!H75","v":0},null,"H","Publicidad y/o Esponsorización"]
[null,"Total Gastos Directos",{"$f":"SUM(C9:C18)","v":0},{"$f":"SUM(D9:D18)","v":0},{"$f":"SUM(E9:E18)","v":0},{"$f":"SUM(F9:F18)","v":0},null,"I.","Otros ingresos"]
["Gastos indirectos (máximo 10% subvención)",null,"Indirectos inicial total","Indirectos reform. Total","Indirectos inicial subvención","Indirectos reform. Subvención",null,null,"Total Ingresos",{"$f":"SUM(J9:J19)","v":0},0]
[]
[null,"Total Gastos Indirectos",{"$f":"'Reformulación Presupuesto Bc'!E133","v":0},{"$f":"'Reformulación Presupuesto Bc'!K133","v":0},{"$f":"'Reformulación Presupuesto Bc'!B133","v":0},{"$f":"'Reformulación Presupuesto Bc'!H133","v":0},null,"Ingresos menos gastos",null,{"$f":"+J20-C23","v":0},{"$f":"+K20-D23","v":0}]
[null,"Total Gastos",{"$f":"+C19+C22","v":0},0,0,0]
[null,null,null,null,null,null,null,null,null,"% subvencionado inicialmente",{"$f":"IF(J9>0,J9/C23,\"\")","v":""}]
[]
[null,null,null,null,null,null,null,null,null,"% subvencionado después de reformular",{"$f":"IF(K9>9,K9/D23,\"\")","v":""},"*"]
[null,null,null,null,null,null,null,"*Este porcentaje debe ser igual o menor al porcentaje subvencionado inicialmente."]